Cogmind - Beta 13 @@@ ROGUE MODE // 2024.07.22 @ 18:21:08 Player: N.W.L Result: Heading to fleet! Performance ------------- Evolutions (9) 4500 Regions Visited (18) 3600 Robots Destroyed (42) 210 Value Destroyed (1450) 1450 Prototype IDs (29) 580 Alien Tech Used (9) 1800 Bonus (16911) 16911 TOTAL SCORE: 29051 Bonus ------- Triggered Max Security 2000 Follower Combat Kills 1013 Used Core Reset Matrix 3000 Scanned by Researcher 500 Integrated Exoskeleton 5000 Win 3000 Win Speed 2398 Cogmind --------- Core Integrity 1566/1600 Matter 77/300 Energy 1128/1130 System Corruption 0% Temperature Cool (0) Movement Walking (30) Location To Fleet Rendezvous Parts ------- > --- POWER (2) -------- Light Particle Reactor Quantum Reactor > --- PROPULSION (4) --- Sigix Exoskeleton > --- UTILITY (6) ------ Medium Storage Unit Experimental Energy Well Enhanced Optical Array Experimental Core Analyzer Advanced Hacking Suite Advanced Corruption Screen > --- WEAPON (4) ------- Sigix Sheargun Sigix Sheargun Sigix Broadsword > --- INVENTORY (10) --- 2N-1CE's Frost Array Experimental Energy Well (600) Transdimensional Reconstructor High-powered Transdimensional Reconstructor Microwarp Drive Peak State ------------ > --- POWER ------------ Light Particle Reactor Quantum Reactor > --- PROPULSION ------- Sigix Exoskeleton > --- UTILITY ---------- Medium Storage Unit Experimental Energy Well Enhanced Optical Array Experimental Core Analyzer Advanced Hacking Suite Advanced Corruption Screen > --- WEAPON ----------- Sigix Sheargun Sigix Sheargun Sigix Broadsword > --- INVENTORY -------- 2N-1CE's Frost Array Experimental Energy Well Transdimensional Reconstructor High-powered Transdimensional Reconstructor Microwarp Drive Drained L-Cannon [Rating: 281] Favorites ----------- Power Light Particle Reactor Engine Backup Power III Power Core Cooled Fission Core Reactor Light Particle Reactor Propulsion Cesium-ion Thruster Treads Heavy Treads Leg Sigix Exoskeleton Hover Unit Gravmag System Flight Unit Cesium-ion Thruster Utility Medium Storage Unit Device Gravity Neutralizer Storage Medium Storage Unit Processor Advanced Visual Processing Unit Hackware System Shield Protection Improved Propulsion Shielding Artifact Microwarp Drive Weapon Sigix Sheargun Energy Gun Sigix Sheargun Energy Cannon Heavy Plasma Cannon Ballistic Gun Enhanced Autogun Ballistic Cannon Compact Mass Driver Launcher Heavy Rocket Launcher Slashing Weapon Sigix Broadsword Piercing Weapon Force Lance Special Melee Weapon Datajack Build | -11 -10 -10 -10 -9 -8 -7 -7 -7 -6 -5 -4 -3 -3 -3 -2 -2 -1 -1 ------- Run | Yrd Mat Min Exi Min Mat Fac Was Fac Fac Fac Fac Res Qua Sec Res Tes Acc Com Slots Evolved 18 | . . . . . 4 2 . . 2 2 2 2 . . 2 . 2 . Power 1 | . . . . . . . . . . . . 1 . . . . . . Propulsion 6 | . . . . . 2 1 . . 1 1 . 1 . . . . . . Utility 10 | . . . . . 2 1 . . 1 1 2 . . . 1 . 2 . Weapon 1 | . . . . . . . . . . . . . . . 1 . . . Parts Attached 138 | . . 6 . 1 7 5 7 14 7 8 7 10 16 27 7 9 2 5 Power 20 | . . 1 . . 1 . 2 2 2 2 1 3 2 3 . . . 1 Engine 4 | . . 1 . . 1 . 1 1 . . . . . . . . . . Core 6 | . . . . . . . 1 1 2 1 1 . . . . . . . Reactor 10 | . . . . . . . . . . 1 . 3 2 3 . . . 1 Propulsion 23 | . . 1 . . . 1 3 7 1 1 3 3 2 1 . . . . Treads 1 | . . . . . . . 1 . . . . . . . . . . . Leg 1 | . . . . . . . 1 . . . . . . . . . . . Wheel . | . . . . . . . . . . . . . . . . . . . Hover 2 | . . . . . . 1 1 . . . . . . . . . . . Flight 19 | . . 1 . . . . . 7 1 1 3 3 2 1 . . . . Utility 44 | . . . . . 1 3 2 1 2 3 2 3 4 13 4 4 2 . Device 20 | . . . . . . . 1 . 1 2 . 3 2 6 3 2 . . Storage 5 | . . . . . . 1 1 . . . . . . 2 . 1 . . Processor 8 | . . . . . 1 . . 1 1 1 . . 1 . 1 1 1 . Hackware 5 | . . . . . . 2 . . . . 2 . . . . . 1 . Protection 2 | . . . . . . . . . . . . . . 2 . . . . Artifact 4 | . . . . . . . . . . . . . 1 3 . . . . Weapon 51 | . . 4 . 1 5 1 . 4 2 2 1 1 8 10 3 5 . 4 Energy Gun 9 | . . . . . 1 . . 1 . . . . . . 1 4 . 2 Energy Cannon 11 | . . . . . . . . . 1 1 . 1 3 4 . . . 1 Ballistic Gun 6 | . . 2 . . 2 . . . . . 1 . . 1 . . . . Ballistic Cannon 1 | . . . . . . . . . . . . . . . . 1 . . Launcher 10 | . . 2 . . 2 . . 1 1 . . . 2 . 2 . . . Special Weapon . | . . . . . . . . . . . . . . . . . . . Impact Weapon . | . . . . . . . . . . . . . . . . . . . Slashing Weapon 11 | . . . . . . 1 . 1 . . . . 3 5 . . . 1 Piercing Weapon 2 | . . . . . . . . 1 . 1 . . . . . . . . Special Melee Weapon 1 | . . . . 1 . . . . . . . . . . . . . . Unidentified Prototypes 23 | . . . . . 1 . 2 1 1 2 . 2 4 4 2 4 . . Parts Lost 15 | . . 1 . . 4 . . . . 1 . 6 . 3 . . . . Power 1 | . . . . . 1 . . . . . . . . . . . . . Propulsion 9 | . . . . . 1 . . . . 1 . 5 . 2 . . . . Utility 1 | . . . . . . . . . . . . . . 1 . . . . Weapon 4 | . . 1 . . 2 . . . . . . 1 . . . . . . Highest Loss Streak 3 | . . 1 . . 3 . . . . 1 . 3 . 3 . . . . To Critical Strikes . | . . . . . . . . . . . . . . . . . . . Average Slot Usage (%) 67 | . . 21 42 42 14 30 63 90 90 97 89 81 75 69 64 70 65 75 Engine 1 | . . 5 14 14 3 . 3 6 1 . . . . . . . . . Reactor 6 | . . . . . . . . . . . . 2 5 10 14 14 12 12 Leg 2 | . . . . . . . 3 . . . . . . 2 7 7 6 6 Flight 12 | . . 5 14 14 1 . . 28 35 40 30 26 22 14 . . . . Device 4 | . . . . . . . 2 3 4 5 5 7 8 7 8 10 . . Storage 5 | . . . . . . 2 7 7 6 5 5 4 4 4 7 7 12 12 Processor 10 | . . . . . 1 7 7 11 13 17 15 14 14 6 6 10 13 18 Hackware 8 | . . . . . . 10 15 15 13 11 20 15 14 8 . . 1 6 Energy Gun 4 | . . . . . 1 . 12 3 2 . . . . 3 10 13 12 12 Ballistic Gun 1 | . . 9 14 14 5 4 . . . . 1 . . . . . . . Slashing Weapon 3 | . . . . . . 1 . 1 . . . . 2 4 7 7 6 6 Piercing Weapon 1 | . . . . . . . . 5 6 3 5 4 . . . . . . Naked Turns 72 | . 10 26 . . 36 . . . . . . . . . . . . . Heaviest Build 70 | . . 4 4 4 11 10 15 25 40 40 33 45 53 55 62 60 58 70 Greatest Support 80 | 3 3 4 4 4 4 9 19 25 43 47 42 67 74 80 80 80 80 80 Greatest Overweight (x) 3 | . . . . . 3 1 1 1 . . . . . . . . . . Average Overweight (x) . | . . . . . . . . . . . . . . . . . . . Largest Inventory Capacity 10 | 5 5 5 5 5 5 8 10 10 10 10 10 10 10 10 10 10 10 10 Average Capacity 9 | 5 5 5 5 5 5 6 8 10 10 10 10 10 10 9 10 10 10 10 Most Carried 10 | . . 3 3 5 5 8 10 10 10 10 10 10 10 10 10 10 10 10 Average Carried 8 | . . 1 3 4 3 5 8 9 9 9 9 9 9 9 9 9 10 8 Final Capacity 10 | 5 5 5 5 5 5 8 10 10 10 10 10 10 10 10 10 10 10 10 Final Carried 10 | . . 3 3 5 4 8 10 10 10 9 10 10 10 10 10 10 10 6 Class Distribution -------------------- 33% | Alien-Sigix 30% | Hacker-Sprinter 13% | Mutant 11% | Scavenger-Sprinter 10% | Hacker-Mutant Dominant Class ---------------- Mutant | -10/Materials Mutant | -10/Mines Mutant | -10/Exiles Mutant | -9/Mines Mutant | -8/Materials Hacker-Mutant | -7/Factory Hacker-Mutant | -7/Waste Scavenger-Sprinter | -7/Factory Scavenger-Sprinter | -6/Factory Scavenger-Sprinter | -5/Factory Hacker-Sprinter | -4/Factory Hacker-Sprinter | -3/Research Hacker-Sprinter | -3/Quarantine Hacker-Sprinter | -3/Section 7 Alien-Sigix | -2/Research Alien-Sigix | -2/Testing Alien-Sigix | -1/Access Alien-Sigix | -1/Command Resources | -11 -10 -10 -10 -9 -8 -7 -7 -7 -6 -5 -4 -3 -3 -3 -2 -2 -1 -1 ----------- Run | Yrd Mat Min Exi Min Mat Fac Was Fac Fac Fac Fac Res Qua Sec Res Tes Acc Com Matter Collected 1681 | 200 . 109 . 22 62 28 196 140 84 90 99 33 200 320 76 . 22 . Remotely . | . . . . . . . . . . . . . . . . . . . Salvage Created 1363 | . . 127 . 17 72 28 . 211 . 99 162 44 174 407 . . 22 . Parts 101 | . . 11 . 2 13 2 . 14 . 2 13 3 12 26 . . 3 . Haulers Intercepted 2 | . . . . . . . . 1 . 1 . . . . . . . . Recyclers Shooed 2 | . . . . . . . . . . . . . 1 . . 1 . . Parts Field Recycled . | . . . . . . . . . . . . . . . . . . . Retrieved Matter . | . . . . . . . . . . . . . . . . . . . Parts Self-Destructed . | . . . . . . . . . . . . . . . . . . . Prevented . | . . . . . . . . . . . . . . . . . . . Kills | -11 -10 -10 -10 -9 -8 -7 -7 -7 -6 -5 -4 -3 -3 -3 -2 -2 -1 -1 ------- Run | Yrd Mat Min Exi Min Mat Fac Was Fac Fac Fac Fac Res Qua Sec Res Tes Acc Com Combat Hostiles Destroyed 22 | . . 6 . 1 5 . . . . . 1 . 5 4 . . . . Melee 6 | . . . . 1 . . . . . . 1 . . 4 . . . . AOE 16 | . . 6 . . 5 . . . . . . . 5 . . . . . Classes Destroyed 12 | . . 2 . . 2 1 . 2 . . 1 1 1 2 . . . . Worker 5 | . . . . . 1 . . . . . 1 1 1 . . . 1 . Builder 2 | . . . . . . . . . . . . 1 . 1 . . . . Hauler 2 | . . . . . . . . 1 . 1 . . . . . . . . Recycler 3 | . . 1 . . . . . 2 . . . . . . . . . . Mechanic 1 | . . . . . . . . . . . 1 . . . . . . . Operator 2 | . . . . . . 1 . . . . . . 1 . . . . . Watcher 3 | . . . . . . . . 1 . . 1 . . 1 . . . . Swarmer 16 | . . 6 . 1 4 . . . . . . . 5 . . . . . Grunt 2 | . . . . . 1 . . . . . 1 . . . . . . . Researcher 2 | . . . . . . . . . . . . . 1 1 . . . . Sentry 1 | . . . . . . . . . . . . . . 1 . . . . Programmer 3 | . . . . . . . . . . . . . . 3 . . . . Best Kill Streak 6 | . . 3 . 1 4 1 . 2 . 1 3 1 6 3 . . 1 . Combat Bots Only 5 | . . 3 . 1 4 . . . . . 1 . 5 3 . . . . Max Kills in Single Turn 4 | . . 2 . 1 4 1 . 1 . 1 1 1 3 1 . . 1 . Gunslinging . | . . . . . . . . . . . . . . . . . . . Exploded 4 | . . 2 . . 4 . . . . . . . 3 . . . . . Melee 1 | . . . . 1 . . . . . . 1 . . 1 . . . . Uniques/NPCs Destroyed . | . . . . . . . . . . . . . . . . . . . Combat | -11 -10 -10 -10 -9 -8 -7 -7 -7 -6 -5 -4 -3 -3 -3 -2 -2 -1 -1 -------- Run | Yrd Mat Min Exi Min Mat Fac Was Fac Fac Fac Fac Res Qua Sec Res Tes Acc Com Hostile Shots Fired 238 | . . 12 . 3 49 7 . . . 2 2 54 53 25 . 3 28 . Missed 109 | . . 3 . 2 18 3 . . . 1 2 27 26 9 . 1 17 . Damage Taken 3068 | . . 81 . 14 511 131 . 27 24 20 . 552 614 953 . 22 119 . Core 915 | . . 52 . 10 297 72 . 10 8 . . 188 74 163 . 7 34 . Absorbed by Shields . | . . . . . . . . . . . . . . . . . . . Ignored by Resistances 202 | . . . . . . . . . . . . . . 55 . 23 124 . Regen/Repaired (Parts) 969 | . . . . . . . 248 . . . . . 228 493 . . . . Core Remaining (%) 87 | 100 . . . 75 46 . . 88 99 100 100 . . 67 . 99 . 97 Volleys Fired 168 | . . 16 . . 7 23 4 3 3 2 . 2 24 16 9 18 31 10 Largest 2 | . . 1 . . 1 1 2 1 1 1 . 1 1 2 2 2 2 1 Hottest 200 | . . 33 . . 50 25 80 56 40 90 . 90 90 200 200 200 200 100 Shots Fired 181 | . . 16 . . 7 23 8 3 3 2 . 2 24 18 11 20 34 10 Gun 131 | . . 11 . . 4 23 8 3 2 . . . . 5 11 20 34 10 Cannon 35 | . . . . . . . . . . 2 . 2 18 13 . . . . Launcher 15 | . . 5 . . 3 . . . 1 . . . 6 . . . . . Special . | . . . . . . . . . . . . . . . . . . . Kinetic 37 | . . 11 . . 3 23 . . . . . . . . . . . . Thermal 48 | . . . . . . . 8 3 2 2 . 2 18 13 . . . . Explosive 15 | . . 5 . . 3 . . . 1 . . . 6 . . . . . Electromagnetic 1 | . . . . . 1 . . . . . . . . . . . . . Slashing 80 | . . . . . . . . . . . . . . 5 11 20 34 10 Robot Hit Streak 8 | . . 2 . . 2 4 5 8 . . . . 1 1 1 . 1 . Robot Miss Streak 3 | . . 3 . . 2 3 1 . 2 . . . 1 1 1 . 1 . Penetration Max . | . . . . . . . . . . . . . . . . . . . Secondary Targets . | . . . . . . . . . . . . . . . . . . . Shots Hit Robots 71 | . . 4 . . 2 14 7 11 . 2 8 2 3 16 1 . 1 . Core Hits 54 | . . 10 . 1 7 4 1 5 . 1 5 2 10 7 . . 1 . Critical Kills . | . . . . . . . . . . . . . . . . . . . Critical Parts Destroyed . | . . . . . . . . . . . . . . . . . . . Critical Strikes 8 | . . . . . . . . 2 . 1 1 . . 4 . . . . Burn 1 | . . . . . . . . 1 . . . . . . . . . . Sever 4 | . . . . . . . . . . . . . . 4 . . . . Impale 3 | . . . . . . . . 1 . 1 1 . . . . . . . Melee Attacks 114 | . . . . . . . . 18 3 5 14 13 8 49 . 3 . 1 Impact . | . . . . . . . . . . . . . . . . . . . Slashing 64 | . . . . . . . . 3 . . . . 8 49 . 3 . 1 Piercing 50 | . . . . . . . . 15 3 5 14 13 . . . . . . Sneak Attacks 12 | . . . . . . . . 3 . 1 4 2 1 1 . . . . Combat Hostiles 1 | . . . . . . . . . . . 1 . . . . . . . Follow-up Attacks . | . . . . . . . . . . . . . . . . . . . Damage Inflicted 5225 | . . 422 . 9 328 230 91 562 . 224 633 219 993 1277 80 96 61 . Guns 790 | . . 27 . . 31 230 91 49 . . . . . 158 80 63 61 . Cannons . | . . . . . . . . . . . . . . . . . . . Explosions 1413 | . . 395 . . 297 . . . . . . . 721 . . . . . Melee 2980 | . . . . . . . . 513 . 224 633 219 272 1119 . . . . Ramming 42 | . . . . 9 . . . . . . . . . . . 33 . . Kinetic 273 | . . 27 . . 16 230 . . . . . . . . . . . . Thermal 140 | . . . . . . . 91 49 . . . . . . . . . . Explosive 1413 | . . 395 . . 297 . . . . . . . 721 . . . . . Electromagnetic 15 | . . . . . 15 . . . . . . . . . . . . . Impact . | . . . . . . . . . . . . . . . . . . . Slashing 1903 | . . . . . . . . 150 . . . . 272 1277 80 63 61 . Piercing 1439 | . . . . . . . . 363 . 224 633 219 . . . . . . Highest Corruption 7 | . . . . . . . . 1 . 1 . 1 1 7 4 4 . . Average Corruption 2 | . . . . . . . . 1 . 1 . 1 1 3 4 4 . . Corruption Purged . | . . . . . . . . . . . . . . . . . . . Corruption Blocked . | . . . . . . . . . . . . . . . . . . . Effects 27 | . . . . . . . . 2 . 1 . . 2 14 2 6 . . Message Errors 9 | . . . . . . . . . . . . . . 5 1 3 . . Matter Fused 5 | . . . . . . . . 1 . 1 . . . 3 . . . . Heat Flow Errors 3 | . . . . . . . . . . . . . 1 2 . . . . Energy Discharges 6 | . . . . . . . . 1 . . . . 1 2 1 1 . . Data Loss (minor) 1 | . . . . . . . . . . . . . . 1 . . . . Misfires 2 | . . . . . . . . . . . . . . 1 . 1 . . Alerts 1 | . . . . . . . . . . . . . . . . 1 . . Overload Shots . | . . . . . . . . . . . . . . . . . . . Overflow Damage 580 | . . . . . 55 . . 95 . 105 . . 206 119 . . . . Projectiles . | . . . . . . . . . . . . . . . . . . . Explosions 79 | . . . . . 55 . . . . . . . 24 . . . . . Melee 501 | . . . . . . . . 95 . 105 . . 182 119 . . . . Knockbacks . | . . . . . . . . . . . . . . . . . . . Impact . | . . . . . . . . . . . . . . . . . . . Kinetic . | . . . . . . . . . . . . . . . . . . . Secondary . | . . . . . . . . . . . . . . . . . . . Self-Inflicted Damage 147 | . . 7 . 4 88 . . . . . . . 48 . . . . . Shots 5 | . . 1 . . 2 . . . . . . . 2 . . . . . Rammed 1 | . . . . 1 . . . . . . . . . . . . . . Targets Rammed 3 | . . . . 1 . . . . . . . . . . . 2 . . Kicked 2 | . . . . . . . . . . . . . . . . 2 . . Crushed . | . . . . . . . . . . . . . . . . . . . Highest Temperature 426 | . . . . . . . . 24 27 394 . 44 134 426 . . . 14 Average Temperature 101 | . . . . . . . . 6 6 120 . 17 78 118 . . . 8 Received Heat Transfer 330 | . . . . . 153 . . . . . . 60 45 72 . . . . Effects 6 | . . . . . . . . . . 1 . . . 5 . . . . Shutdowns 1 | . . . . . . . . . . . . . . 1 . . . . Interference 4 | . . . . . . . . . . . . . . 4 . . . . Damage (minor) 1 | . . . . . . . . . . 1 . . . . . . . . Siege Activations . | . . . . . . . . . . . . . . . . . . . Robots Corrupted . | . . . . . . . . . . . . . . . . . . . Combat Hostiles . | . . . . . . . . . . . . . . . . . . . Parts Fried . | . . . . . . . . . . . . . . . . . . . Impact Corruptions . | . . . . . . . . . . . . . . . . . . . Robots Melted . | . . . . . . . . . . . . . . . . . . . Combat Hostiles . | . . . . . . . . . . . . . . . . . . . Parts Melted . | . . . . . . . . . . . . . . . . . . . Heat Transferred 444 | . . . . . . . 259 185 . . . . . . . . . . Parts Sabotaged . | . . . . . . . . . . . . . . . . . . . Parts Stolen . | . . . . . . . . . . . . . . . . . . . Parts Stripped . | . . . . . . . . . . . . . . . . . . . Power Chain Reactions 1 | . . . . . . . . . . . . . . . . . 1 . Alert | -11 -10 -10 -10 -9 -8 -7 -7 -7 -6 -5 -4 -3 -3 -3 -2 -2 -1 -1 ------- Run | Yrd Mat Min Exi Min Mat Fac Was Fac Fac Fac Fac Res Qua Sec Res Tes Acc Com Peak Influence 1747 | . . 187 . . 227 183 144 1150 865 418 333 484 518 318 242 1654 1747 1129 Initial 1117 | . . . . . 7 102 64 100 563 413 194 174 213 220 124 135 1100 1117 Average 448 | . . 138 . . 149 153 103 673 653 397 274 330 357 158 184 501 1298 1081 Maximum Alert Level 5 | . . . . . 1 . . 4 3 2 1 2 2 1 1 5 5 4 Low Security (%) 37 | 100 100 100 . 100 71 100 100 8 . . 4 9 . 65 58 18 . . Level 1 31 | . . . . . 28 . . 29 . 47 95 63 74 34 41 63 . . Level 2 8 | . . . . . . . . 8 74 52 . 26 25 . . . . . Level 3 8 | . . . . . . . . 48 25 . . . . . . . . 48 Level 4 13 | . . . . . . . . 5 . . . . . . . . 92 51 Level 5 . | . . . . . . . . . . . . . . . . . . . High Security . | . . . . . . . . . . . . . . . . . . . Max Security 1 | . . . . . . . . . . . . . . . . 17 7 . Squads Dispatched 42 | . . . . . 2 3 . 2 1 2 . 3 4 2 1 7 13 2 Investigation 10 | . . . . . . 2 . 1 1 1 . 2 . 1 . . 2 . Extermination 3 | . . . . . . 1 . . . . . . . 1 . . . 1 Reinforcement 14 | . . . . . 2 . . 1 . . . 1 4 . 1 1 3 1 Assault 13 | . . . . . . . . . . . . . . . . 6 7 . Garrison 2 | . . . . . . . . . . 1 . . . . . . 1 . Intercept . | . . . . . . . . . . . . . . . . . . . Searches Triggered 2 | . . . . . . . . . . . . 1 1 . . . . . Construction Impeded 2 | . . . . . . . . 1 . . . . . . . . 1 . Haulers Reinforced . | . . . . . . . . . . . . . . . . . . . Active Scanning Responses . | . . . . . . . . . . . . . . . . . . . Cargo Convoy Interrupts . | . . . . . . . . . . . . . . . . . . . Stealth | -11 -10 -10 -10 -9 -8 -7 -7 -7 -6 -5 -4 -3 -3 -3 -2 -2 -1 -1 --------- Run | Yrd Mat Min Exi Min Mat Fac Was Fac Fac Fac Fac Res Qua Sec Res Tes Acc Com Distress Signals 8 | . . . . . 1 . . . . 1 . . 2 . . 1 1 2 Communications Jammed . | . . . . . . . . . . . . . . . . . . . Distress Signals . | . . . . . . . . . . . . . . . . . . . Times Spotted 157 | . . 6 . 3 17 13 2 16 3 5 6 21 26 12 1 7 19 . Peak Tracking Total 21 | . . 3 . 3 9 6 1 5 2 5 4 8 8 6 . 15 21 1 Tactical Retreats 22 | . . . . . 1 1 . 1 . 1 1 7 4 3 . . 3 . Traps | -11 -10 -10 -10 -9 -8 -7 -7 -7 -6 -5 -4 -3 -3 -3 -2 -2 -1 -1 ------- Run | Yrd Mat Min Exi Min Mat Fac Was Fac Fac Fac Fac Res Qua Sec Res Tes Acc Com Traps Triggered 10 | . . . . . . 2 . . . . 2 1 . 5 . . . . Indirectly . | . . . . . . . . . . . . . . . . . . . Trap Hack Attempts . | . . . . . . . . . . . . . . . . . . . Triggered . | . . . . . . . . . . . . . . . . . . . Disarmed . | . . . . . . . . . . . . . . . . . . . Reprogrammed . | . . . . . . . . . . . . . . . . . . . Reused . | . . . . . . . . . . . . . . . . . . . Traps Extracted . | . . . . . . . . . . . . . . . . . . . Installed . | . . . . . . . . . . . . . . . . . . . Triggered . | . . . . . . . . . . . . . . . . . . . Most Traps Carried 1 | . . . . 1 . . . . . . . . . . . . . . Machines | -11 -10 -10 -10 -9 -8 -7 -7 -7 -6 -5 -4 -3 -3 -3 -2 -2 -1 -1 ---------- Run | Yrd Mat Min Exi Min Mat Fac Was Fac Fac Fac Fac Res Qua Sec Res Tes Acc Com Machines Disabled 38 | . . . . . 2 . . 7 1 . . . 4 10 1 7 4 2 Max in Single Turn 2 | . . . . . 1 . . . . . . . 1 1 1 1 2 1 Garrison Access 5 | . . . . . . 1 . . . . . 2 1 1 . . . . Energy Cycler 1 | . . . . . . . . . . . . . . . . . 1 . Machines Repaired . | . . . . . . . . . . . . . . . . . . . Machines Dismantled . | . . . . . . . . . . . . . . . . . . . Machines Sabotaged . | . . . . . . . . . . . . . . . . . . . Overloaded Fab Kills . | . . . . . . . . . . . . . . . . . . . Hacking | -11 -10 -10 -10 -9 -8 -7 -7 -7 -6 -5 -4 -3 -3 -3 -2 -2 -1 -1 --------- Run | Yrd Mat Min Exi Min Mat Fac Was Fac Fac Fac Fac Res Qua Sec Res Tes Acc Com Machines Accessed 56 | . . . 1 . 2 4 . 7 1 4 6 6 6 11 3 2 2 1 Terminals 46 | . . . . . 2 3 . 4 1 4 6 4 5 10 3 1 2 1 Fabricators 3 | . . . . . . . . 2 . . . . . . . 1 . . Repair Stations . | . . . . . . . . . . . . . . . . . . . Recycling Units . | . . . . . . . . . . . . . . . . . . . Scanalyzers . | . . . . . . . . . . . . . . . . . . . Garrison Access 6 | . . . . . . 1 . 1 . . . 2 1 1 . . . . Total Hacks 145 | . . . 4 . 4 11 . 16 3 9 20 11 17 33 4 6 4 3 Successful 60 | . . . 4 . . 4 . 5 2 2 7 5 9 18 2 2 . . Failed 85 | . . . . . 4 7 . 11 1 7 13 6 8 15 2 4 4 3 Catastrophic 17 | . . . . . 2 1 . 3 . 2 3 1 1 1 1 1 1 . Database Lockouts . | . . . . . . . . . . . . . . . . . . . Manual 40 | . . . . . 2 4 . 3 3 4 12 1 7 2 . 1 1 . Terminals 127 | . . . . . 4 10 . 11 3 9 20 8 15 31 4 5 4 3 Fabricators 3 | . . . . . . . . 2 . . . . . . . 1 . . Repair Stations . | . . . . . . . . . . . . . . . . . . . Recycling Units . | . . . . . . . . . . . . . . . . . . . Scanalyzers . | . . . . . . . . . . . . . . . . . . . Garrison Access 11 | . . . . . . 1 . 3 . . . 3 2 2 . . . . Terminal Hacks 48 | . . . 4 . . 1 . 3 2 1 7 3 8 16 2 1 . . Record 6 | . . . 4 . . . . . . . 1 . 1 . . . . . Prototype ID Bank 4 | . . . . . . . . . . . 1 . 1 1 1 . . . Open Door 4 | . . . . . . . . . . . . 1 . 3 . . . . Level Access Points 4 | . . . . . . . . 1 1 . 1 . . 1 . . . . Branch Access Points 2 | . . . . . . . . . . . 1 1 . . . . . . Terminal Index 5 | . . . . . . . . 1 1 1 . 1 . 1 . . . . Fabricator Index 1 | . . . . . . . . . . . . . . 1 . . . . Alert Level 6 | . . . . . . . . 1 . . . . 1 2 1 1 . . Unreport Threat 5 | . . . . . . . . . . . . . 2 3 . . . . Locate Traps 3 | . . . . . . . . . . . 2 . . 1 . . . . Maintenance Status 1 | . . . . . . . . . . . . . 1 . . . . . Surveillance Status 1 | . . . . . . . . . . . . . . 1 . . . . Patrol Status 1 | . . . . . . . . . . . . . 1 . . . . . Recall Reinforcements 1 | . . . . . . . . . . . . . 1 . . . . . Hauler Manifests 1 | . . . . . . . . . . . . . . 1 . . . . Registered Components 1 | . . . . . . 1 . . . . . . . . . . . . Zone Layout 2 | . . . . . . . . . . . 1 . . 1 . . . . Fabricator Hacks 1 | . . . . . . . . 1 . . . . . . . . . . Build 1 | . . . . . . . . 1 . . . . . . . . . . Repair Station Hacks . | . . . . . . . . . . . . . . . . . . . Recycling Unit Hacks . | . . . . . . . . . . . . . . . . . . . Scanalyzer . | . . . . . . . . . . . . . . . . . . . Garrison Access Hacks 5 | . . . . . . 1 . . . . . 2 1 1 . . . . Seal Access 5 | . . . . . . 1 . . . . . 2 1 1 . . . . Unauthorized Hacks 6 | . . . . . . 2 . 1 . 1 . . . 1 . 1 . . Terminals 4 | . . . . . . 2 . . . 1 . . . 1 . . . . Assimilate 1 | . . . . . . 1 . . . . . . . . . . . . Botnet 2 | . . . . . . 1 . . . 1 . . . . . . . . Operators 1 | . . . . . . . . . . . . . . 1 . . . . Fabricators 2 | . . . . . . . . 1 . . . . . . . 1 . . Liberate 1 | . . . . . . . . . . . . . . . . 1 . . Haulers 1 | . . . . . . . . 1 . . . . . . . . . . Repair Stations . | . . . . . . . . . . . . . . . . . . . Recycling Units . | . . . . . . . . . . . . . . . . . . . Scanalyzers . | . . . . . . . . . . . . . . . . . . . Garrison Access . | . . . . . . . . . . . . . . . . . . . Data Cores Recovered . | . . . . . . . . . . . . . . . . . . . Used . | . . . . . . . . . . . . . . . . . . . Hacking Detections 46 | . . . . . 2 3 . 6 1 4 6 5 4 8 3 1 2 1 Full Trace Events 8 | . . . . . 1 2 . 1 . 1 . 1 . 1 . . 1 . Feedback Events 3 | . . . . . . . . 1 . 1 . 1 . . . . . . Corruption 3 | . . . . . . . . 1 . 1 . 1 . . . . . . Feedback Blocked . | . . . . . . . . . . . . . . . . . . . Robot Schematics Acquired 1 | . . . . . . . . . . . . . . 1 . . . . Robots Built . | . . . . . . . . . . . . . . . . . . . Authchips . | . . . . . . . . . . . . . . . . . . . Time . | . . . . . . . . . . . . . . . . . . . Total Robot Build Rating . | . . . . . . . . . . . . . . . . . . . Part Schematics Acquired 3 | . . . . . . . . . . . . . . 3 . . . . Parts Built 2 | . . . . . . . . 2 . . . . . . . . . . Authchips . | . . . . . . . . . . . . . . . . . . . Time 53 | . . . . . . . . 53 . . . . . . . . . . Total Part Build Rating 12 | . . . . . . . . 12 . . . . . . . . . . Parts Repaired . | . . . . . . . . . . . . . . . . . . . Time . | . . . . . . . . . . . . . . . . . . . Parts Recycled . | . . . . . . . . . . . . . . . . . . . Recycled Matter . | . . . . . . . . . . . . . . . . . . . Retrieved Matter . | . . . . . . . . . . . . . . . . . . . Retrieved Components . | . . . . . . . . . . . . . . . . . . . Parts Scanalyzed . | . . . . . . . . . . . . . . . . . . . Part Schematics Acquired . | . . . . . . . . . . . . . . . . . . . Parts Damaged . | . . . . . . . . . . . . . . . . . . . Bothacking | -11 -10 -10 -10 -9 -8 -7 -7 -7 -6 -5 -4 -3 -3 -3 -2 -2 -1 -1 ------------ Run | Yrd Mat Min Exi Min Mat Fac Was Fac Fac Fac Fac Res Qua Sec Res Tes Acc Com Used RIF Installer . | . . . . . . . . . . . . . . . . . . . Robots Hacked . | . . . . . . . . . . . . . . . . . . . Non-combat . | . . . . . . . . . . . . . . . . . . . Combat . | . . . . . . . . . . . . . . . . . . . Robot Hacks Applied . | . . . . . . . . . . . . . . . . . . . Relay Couplers Released . | . . . . . . . . . . . . . . . . . . . Fabnet Peak Effective % . | . . . . . . . . . . . . . . . . . . . Robots Rewired . | . . . . . . . . . . . . . . . . . . . Allies Hacked . | . . . . . . . . . . . . . . . . . . . Hacks Repelled . | . . . . . . . . . . . . . . . . . . . Allies | -11 -10 -10 -10 -9 -8 -7 -7 -7 -6 -5 -4 -3 -3 -3 -2 -2 -1 -1 -------- Run | Yrd Mat Min Exi Min Mat Fac Was Fac Fac Fac Fac Res Qua Sec Res Tes Acc Com Total Allies 97 | . . . . . . . 20 . . . . . . . 14 . 41 22 Largest Group 20 | . . . . . . . 20 17 11 7 . . . . 12 12 18 8 Highest-Rated Group 514 | . . . . . . . 514 445 343 207 . . . . 166 166 253 114 Highest-Rated Ally 35 | . . . . . . . 35 35 35 31 . . . . 15 15 15 15 Total Orders . | . . . . . . . . . . . . . . . . . . . Ally Attacks 296 | . . . . . . . 21 56 18 21 . . . . 8 48 95 29 Total Damage 7094 | . . . . . . . 253 2351 1114 357 . . . . 172 751 1582 514 Kills 62 | . . . . . . . 3 28 6 1 . . . . 1 8 11 4 Allies Corrupted 5 | . . . . . . . 1 . . 1 . . . . . . 1 2 Allies Melted . | . . . . . . . . . . . . . . . . . . . Intel | -11 -10 -10 -10 -9 -8 -7 -7 -7 -6 -5 -4 -3 -3 -3 -2 -2 -1 -1 ------- Run | Yrd Mat Min Exi Min Mat Fac Was Fac Fac Fac Fac Res Qua Sec Res Tes Acc Com Robot Analysis Total . | . . . . . . . . . . . . . . . . . . . Derelict Logs Recovered . | . . . . . . . . . . . . . . . . . . . Drone Launches . | . . . . . . . . . . . . . . . . . . . Drone Recoveries . | . . . . . . . . . . . . . . . . . . . Exploration | -11 -10 -10 -10 -9 -8 -7 -7 -7 -6 -5 -4 -3 -3 -3 -2 -2 -1 -1 ------------- Run | Yrd Mat Min Exi Min Mat Fac Was Fac Fac Fac Fac Res Qua Sec Res Tes Acc Com Turns Passed 4054 | 12 10 132 51 59 144 310 172 354 102 129 159 284 311 719 184 251 401 270 Spaces Moved 7461 | 24 20 204 128 135 202 440 150 539 222 303 447 790 624 1262 317 312 816 526 Core 623 | 24 20 89 . . 176 314 . . . . . . . . . . . . Treads . | . . . . . . . . . . . . . . . . . . . Legs 2387 | . . . . . . . . . . . . . . 416 317 312 816 526 Wheels . | . . . . . . . . . . . . . . . . . . . Hover 345 | . . . . . . 126 150 69 . . . . . . . . . . Flight 4033 | . . 115 128 135 26 . . 470 222 303 447 790 624 773 . . . . Fastest Speed 18 | 50 50 40 40 40 40 50 46 23 21 18 21 19 26 26 30 30 30 30 Average Speed 32 | 50 50 44 40 40 57 59 77 26 23 19 22 23 30 29 30 30 30 30 Slowest Speed 200 | 50 50 50 40 40 200 120 170 106 24 24 27 33 33 32 30 30 30 30 Overloaded Moves . | . . . . . . . . . . . . . . . . . . . Propulsion Burnouts . | . . . . . . . . . . . . . . . . . . . Robots Hopped 34 | . . 1 . 3 . . . . . 2 3 12 12 1 . . . . Cave-ins Triggered 1 | . . . . . . . . . . . . . . 1 . . . . Microwarps 2 | . . . . . . . . . . . . . . 2 . . . . Exploration Rate (%) 31 | 3 9 41 49 50 32 14 82 25 8 11 17 32 73 57 10 45 28 18 Regions Visited 18 Branch Regions 7 Pre-discovered Areas 1 | . . . 1 . . . . . . . . . . . . . . . Known Exits Taken 7 | . . . . . . . . 1 1 1 1 1 1 1 . . . . Unknown Exits Taken 9 | 1 1 1 1 1 1 . . . . . . . . . 1 1 1 . Scrap Searched 1 | . . . . 1 . . . . . . . . . . . . . . Spaces Dug 220 | . . 33 . . . . . 3 8 4 4 10 34 14 16 24 55 15 Terrain Destroyed 337 | . . 41 . . 40 . . 3 8 4 4 11 48 25 18 28 91 16 Melee 44 | . . . . . . . . 3 2 2 4 10 5 14 . 3 . 1 Projectile 144 | . . . . . . . . . . 2 . 1 13 11 18 25 59 15 AOE 149 | . . 41 . . 40 . . . 6 . . . 30 . . . 32 . Terrain Rammed . | . . . . . . . . . . . . . . . . . . . Walls Destroyed . | . . . . . . . . . . . . . . . . . . . Machines Disabled . | . . . . . . . . . . . . . . . . . . . Actions | -11 -10 -10 -10 -9 -8 -7 -7 -7 -6 -5 -4 -3 -3 -3 -2 -2 -1 -1 --------- Run | Yrd Mat Min Exi Min Mat Fac Was Fac Fac Fac Fac Res Qua Sec Res Tes Acc Com Total 8634 | 23 19 229 127 137 224 475 196 711 261 359 469 849 695 1446 396 448 943 627 Wait 701 | . . . . . . 3 25 125 21 36 . 38 22 104 58 93 95 81 Move 7311 | 23 19 201 127 129 201 440 149 538 221 299 440 767 603 1187 316 311 815 525 Hop 27 | . . 1 . 3 . . . . . 1 3 10 8 1 . . . . Pick Up 39 | . . 3 . 2 2 2 1 . 1 2 4 2 1 17 . 2 . . Fast Attach 94 | . . 4 . 1 5 4 6 8 3 2 5 5 11 22 5 7 2 4 Attach 33 | . . 2 . . 2 1 . 2 . 4 2 3 5 8 2 1 . 1 Detach 32 | . . 2 . 1 2 2 1 4 1 3 . 2 5 5 2 2 . . Swap 17 | . . . . . . . 1 4 4 2 . 2 . 3 . 1 . . Drop 89 | . . . . 1 5 . 5 9 4 3 1 5 8 31 4 8 . 5 Fire 168 | . . 16 . . 7 23 4 3 3 2 . 2 24 16 9 18 31 10 Melee 114 | . . . . . . . . 18 3 5 14 13 8 49 . 3 . 1 Ram . | . . . . . . . . . . . . . . . . . . . Kick 2 | . . . . . . . . . . . . . . . . 2 . . Crush . | . . . . . . . . . . . . . . . . . . . Escape Stasis 3 | . . . . . . . . . . . . . . 3 . . . . Rewire 4 | . . . . . . . 4 . . . . . . . . . . . Trap . | . . . . . . . . . . . . . . . . . . . Miscellaneous . | . . . . . . . . . . . . . . . . . . . Route ------- -11/Scrapyard -10/Materials -10/Mines (discovered 2 exits: [*Mat] / *Exi) -10/Exiles -9/Mines -8/Materials -7/Factory -7/Waste -7/Factory (discovered 4 exits: *Fac x4) -6/Factory (discovered 4 exits: *Fac x4) -5/Factory -4/Factory (discovered 7 exits: *Res x4 / Upp x2 / Arm) -3/Research (discovered 2 exits: *Qua x2) -3/Quarantine (discovered 2 exits: *Res / *Sec) -3/Section 7 -2/Research (discovered 2 exits: *Tes x2) -2/Testing -1/Access -1/Command To Fleet Rendezvous History --------- Turn | Location | Event 2 | -11/Scrapyard | Met Revision 17 5 | -11/Scrapyard | Discovered new exit (range 16) 13 | -11/Scrapyard | Entered Materials 16 | -10/Materials | Discovered new exit (range 13) 23 | -10/Materials | Entered Mines 30 | -10/Mines | Received a Rocket Launcher from a helpful Derelict 62 | -10/Mines | Discovered new exit (range 11) 132 | -10/Mines | Assembled infested the area 154 | -10/Mines | Deemed a non-threat by the Exiles lab entrance 154 | -10/Mines | Discovered new exit (range 5) 155 | -10/Mines | Entered Exiles 166 | -10/Exiles | Met 8R-AWN 172 | -10/Exiles | Met EX-HEX 183 | -10/Exiles | Met EX-BIN 189 | -10/Exiles | Met EX-DEC 190 | -10/Exiles | Learned location of Zion (-6) 203 | -10/Exiles | Discovered new exit (range 10) 206 | -10/Exiles | Entered Mines 237 | -9/Mines | Found a hidden stash of uninstalled traps 263 | -9/Mines | Discovered new exit (range 5) 265 | -9/Mines | Entered Materials 265 | -8/Materials | Evolved 4 slots: Propulsion x2, Utility x2 336 | -8/Materials | Build established: Mutant 367 | -8/Materials | Lost 3 parts (1p2w) 387 | -8/Materials | Discovered new exit (range 15) 388 | -8/Materials | Core integrity fell below 50% 409 | -8/Materials | Entered Factory 409 | -7/Factory | Evolved 2 slots: Propulsion x1, Utility x1 719 | -7/Factory | Manually triggered Chute Trap 719 | -7/Factory | Sucked down chute 719 | -7/Factory | Entered Waste 720 | -7/Waste | Joined by Warlord forces that had cleared the area 855 | -7/Waste | Discovered new exit (range 11) 891 | -7/Waste | Entered Factory 891 | -7/Factory | Accompanied by 17 allies 928 | -7/Factory | Build established: Hacker-Mutant 951 | -7/Factory | Lost 3 allies 969 | -7/Factory | Fabricated Neutrino Core (x2) 1098 | -7/Factory | Identified exit to Factory 1245 | -7/Factory | Entered another Factory area 1245 | -6/Factory | Accompanied by 11 allies 1245 | -6/Factory | Evolved 2 slots: Propulsion x1, Utility x1 1288 | -6/Factory | Build established: Scavenger-Sprinter 1289 | -6/Factory | Identified exit to Factory 1347 | -6/Factory | Entered another Factory area 1347 | -5/Factory | Accompanied by 7 allies 1347 | -5/Factory | Evolved 2 slots: Propulsion x1, Utility x1 1362 | -5/Factory | Lost 3 allies 1389 | -5/Factory | Garrison activated, responded to threat 1464 | -5/Factory | Discovered new exit (range 11) 1476 | -5/Factory | Identified exit to Factory 1476 | -5/Factory | Entered another Factory area 1476 | -4/Factory | Evolved 2 slots: Utility x2 1566 | -4/Factory | Identified exit to Research 1566 | -4/Factory | Identified exit to Upper Caves 1566 | -4/Factory | Identified exit to Armory 1635 | -4/Factory | Entered Research 1635 | -3/Research | Evolved 2 slots: Power x1, Propulsion x1 1740 | -3/Research | Build established: Hacker-Sprinter 1791 | -3/Research | Found Prototype Device 1839 | -3/Research | Identified Adv. Kinecellerator 1850 | -3/Research | Identified exit to Quarantine 1885 | -3/Research | Search patrols dispatched 1903 | -3/Research | Spotted B-86 Titan 1919 | -3/Research | Entered Quarantine 1946 | -3/Quarantine | Lost 3 parts (2n1w) 1952 | -3/Quarantine | Scanned by Researcher 1997 | -3/Quarantine | Found Alien Slashing Weapon 1997 | -3/Quarantine | Identified Sigix Broadsword 2033 | -3/Quarantine | Found Alien Artifact 2075 | -3/Quarantine | Found Prototype Processor 2075 | -3/Quarantine | Identified Spectral Analyzer 2108 | -3/Quarantine | Found Alien Artifact 2108 | -3/Quarantine | Identified Phase Redirector 2141 | -3/Quarantine | Discovered new exit (range 4) 2169 | -3/Quarantine | Search patrols dispatched 2210 | -3/Quarantine | Spotted Fortress 2229 | -3/Quarantine | Discovered new exit (range 6) 2230 | -3/Quarantine | Identified exit to Section 7 2230 | -3/Quarantine | Entered Section 7 2321 | -3/Section 7 | Crushed by falling debris 2328 | -3/Section 7 | Identified exit to Research 2352 | -3/Section 7 | Lost 3 parts (2n1u) 2379 | -3/Section 7 | Found Prototype Device 2379 | -3/Section 7 | Identified Exp. Focal Shield 2453 | -3/Section 7 | Found Alien Artifact 2453 | -3/Section 7 | Identified Microwarp Drive 2486 | -3/Section 7 | Identified Core Reset Matrix 2486 | -3/Section 7 | Used Core Reset Matrix 2490 | -3/Section 7 | Sensed 20 artifacts in vicinity 2491 | -3/Section 7 | Spotted Executioner 2491 | -3/Section 7 | Spotted Executioner 2499 | -3/Section 7 | Spotted B-99 Colossus 2515 | -3/Section 7 | Spotted Executioner 2515 | -3/Section 7 | Spotted Executioner 2567 | -3/Section 7 | Found Core Expander 2569 | -3/Section 7 | Found Core Expander 2570 | -3/Section 7 | Found Core Expander 2581 | -3/Section 7 | Found LRC Inertial Stabilizer 2581 | -3/Section 7 | Installed LRC Inertial Stabilizer, increased mass support (+10) 2583 | -3/Section 7 | Found LRC Inertial Stabilizer 2583 | -3/Section 7 | Installed LRC Inertial Stabilizer, increased mass support (+10) 2685 | -3/Section 7 | Integrated with Sigix Exoskeleton 2685 | -3/Section 7 | Installed Core Expander, added new Weapon slot 2687 | -3/Section 7 | Installed Core Expander, added new Propulsion slot 2689 | -3/Section 7 | Installed Core Expander, added new Power slot 2741 | -3/Section 7 | Found Hpw. Transdimensional Reconstructor 2742 | -3/Section 7 | Found Transdimensional Reconstructor 2804 | -3/Section 7 | Found Drained L-Cannon 2911 | -3/Section 7 | Discovered exit to Research (range 18) 2949 | -3/Section 7 | Entered Research 2949 | -2/Research | Evolved 2 slots: Utility x1, Weapon x1 2954 | -2/Research | Emitted hypermatrix ping 2959 | -2/Research | Assembled emerged from beneath the floor 2974 | -2/Research | Build established: Alien-Sigix 2980 | -2/Research | Discovered new exit (range 16) 3009 | -2/Research | Discovered new exit (range 18) 3077 | -2/Research | Assembled emerged from beneath the floor 3081 | -2/Research | Found Prototype Launcher 3081 | -2/Research | Identified Tesla Bomb Launcher 3133 | -2/Research | Entered Testing 3133 | -2/Testing | Accompanied by 12 allies 3245 | -2/Testing | Found Prototype Energy Gun 3245 | -2/Testing | Identified Warp Gun 3258 | -2/Testing | Lost 12 allies 3262 | -2/Testing | Found Prototype Processor 3262 | -2/Testing | Identified Exp. Core Analyzer 3271 | -2/Testing | Spotted Striker 3281 | -2/Testing | Found Prototype Device 3281 | -2/Testing | Identified 2N-1CE's Frost Array 3327 | -2/Testing | Spotted Striker 3375 | -2/Testing | Discovered new exit (range 16) 3384 | -2/Testing | Entered Access 3384 | -1/Access | Evolved 2 slots: Utility x2 3389 | -1/Access | Emitted hypermatrix ping 3394 | -1/Access | Assembled emerged from beneath the floor 3475 | -1/Access | Assembled emerged from beneath the floor 3511 | -1/Access | Assembled emerged from beneath the floor 3559 | -1/Access | Energy Cycler disabled 3582 | -1/Access | Lost 8 allies 3591 | -1/Access | Assembled emerged from beneath the floor 3634 | -1/Access | First assault squad dispatched 3644 | -1/Access | Assembled emerged from beneath the floor 3647 | -1/Access | Lost 3 allies 3669 | -1/Access | Spotted B-99 Colossus 3674 | -1/Access | Spotted B-99 Colossus 3685 | -1/Access | Garrison activated, responded to threat 3687 | -1/Access | Assembled emerged from beneath the floor 3697 | -1/Access | Discovered new exit (range 17) 3776 | -1/Access | Lost 6 allies 3785 | -1/Access | Entered Command 3790 | -1/Command | Emitted hypermatrix ping 3795 | -1/Command | Assembled emerged from beneath the floor 3804 | -1/Command | Spotted B-99 Colossus 3865 | -1/Command | Lost 4 allies 3868 | -1/Command | Assembled emerged from beneath the floor 3924 | -1/Command | Spotted B-99 Colossus 3967 | -1/Command | Lost 6 allies 4034 | -1/Command | Assembled emerged from beneath the floor 4037 | -1/Command | Discovered new exit (range 15) 4047 | -1/Command | Spotted Alpha 7 4049 | -1/Command | Spotted Striker 4049 | -1/Command | Spotted B-99 Colossus 4050 | -1/Command | Spotted Executioner 4054 | -1/Command | Spotted Executioner 4055 | *** | Heading to fleet! Last Messages --------------- 03971_ Dropped Sigix Sheargun. 03973_ Dropped Drained L-Cannon. 03974_ Acquired Sigix Sheargun. 03976_ Acquired Sigix Broadsword. 03978_ Acquired Sigix Sheargun. 04001_ K-01 Serf collects debris. 04025_ Quantum Shear penetrates Wall. 04029_ Detected hypermatrix ping. 04034_ Assembled emerge from beneath the floor. 04035_ ALERT: Rogue bot located, Programmers report to Command Zone 9C. 04037_ EXIT=FOUND 04040_ Quantum Shear penetrates Wall. 04041_ Quantum Shear penetrates Reinforced Barrier. 04047_ Quantum Shear penetrates Wall. 04047_ Access Shell breached. 04049_ Slug penetrates as-39670. 04049_ Slug penetrates as-90673. 04049_ K-01 Serf destroyed. 04049_ Slug penetrates Wall. 04053_ Slug penetrates Access Shell. Map ----- +----------------------------------------------------+ | ?????????????????????????????????????????????????? | | ?????????????????????????????????????????????????? | | ?????????????????????????????????????????????????? | | ?????????????????????????????????????????????????? | | ?????????????????????????????????????????????????? | | ??????????????????]? ??#?????????????????????????? | | ?????????????########## ????????????????????? | | ?????????? ######## ?????????????????? | | ????????? ######## !! #??????????????? | | ??????? + + !! ##?????????????? | | ?????? ######## + ???????????? | | ????? ######## # ??????????? | | ???? ######## # ?????????? | | ??? #################### ????????? | | ?? ! ############ ##### ????????? | | ?? + hh k k ######???????? | | ? ############ #####+#######??????? | | #######+########################### ??????? | | ####### ########################### ??????? | | ####### ###############"########### ?????? | | ####### ############ ### !! ?????? | | ####### ############ ### !! ?????? | | ####### ###########" ### ! ?????? | | ###### ##########"" """"" ### ?????? | | #########a##a*%" " ### #????? | | ## ###%%!" X" " ######+##+##?????? | | =## a ##"%% " "" " ###### ## ##?????? | | ## ### " ###### ## ##?????? | | # ##" """"" ###### ## ##?????? | | # ### ###### ## ##?????? | | / ###BB E BB###### ## #??????? | | # ###BBE BB######+##+#??????? | | ""### ### ######E ###### ??????? | | T""### ### ##### ##### ???????? | | "" ### ### ###### K ###### ????????? | | ###### ### ##### E##### ????????? | | ######+#######+######## ###### ?????????? | | ##### """" #####K 7 ##### "" ??????????? | | ##### ""R"" ###### ######"""???????????? | | ##### "" "" #####7 #####"?????????????? | | ##### ###### ######??????????????? | | ##### ###### ###?????????????????? | | ##### #######++++###??????????????????? | | ##### "" ####### ###??????????????????? | | ##### """" ####### ##???????????????????? | | ##### """" ####### ?????????????????? | | ##### "" ####### ????????????????? | | ##### ####### ??????????????? | | ##### ### ## ?????????????? | | ######+####+######## ## #########????????????? | +----------------------------------------------------+ Best States ------------- Heat Dissipation 128 Coolant Potential 65 Energy Generation 79 Energy Capacity 1130 Matter Stores 300 Matter Capacity 300 Sight Range 24 Terrain Scan Density 10 Jamming Range 16 Cloak Strength 3 Power Amplification 30 Additional Mass Support 12 Corruption Block 20 Resistance: KI 50 Resistance: TH 50 Resistance: EX 50 Resistance: EM 50 Resistance: I 50 Resistance: S 50 Resistance: P 50 Propulsion Shielding 66 Evasion (%) 69 Core Analysis 8 Kinecelleration 50 Offensive Hacking 24 Defensive Hacking 20 Item Schematics ----------------- Hdn. Centrium Wheel | -3/Section 7 | Archive Exp. Energy Well | -3/Section 7 | Archive Exp. Target Analyzer | -3/Section 7 | Archive Robot Schematics ------------------ R-10 Processor | -3/Section 7 | Archive Fabricated ------------ Neutrino Core | x2 | -7/Factory | Preloaded Alien Tech Used ----------------- Sigix Broadsword Phase Redirector Microwarp Drive Core Reset Matrix LRC Inertial Stabilizer Sigix Exoskeleton Sigix Sheargun Core Expander Drained L-Cannon Achievements -------------- None Challenges ------------ None Game ------ Seed CouplerCoolingSink Manual? 0 Play Time 01:50:20 Cumulative 211.5 hours Start 2024.07.22 @ 16:22:22 End 2024.07.22 @ 18:21:08 Sessions 1 Manual Loads 0 Difficulty Rogue Special Mode None Game No. 98 Rogue 98 Adventurer 0 Explorer 0 Win Type 2 Total 8 Types 4/1/3/0/0/0/0/0/0 Lore% 79 Gallery% 86 Achievement% 67 Wizard Run 0 Options --------- Layout 0 ASCII 0 Keyboard 0 Movement Mouse Keybinds 0 Fullscreen 2 Font 18/SmallcapsGlow Map View 76x50 Zoom Use 0% Tactical HUD 1 Map Filters NONE Filters NONE Steam 1 RUN: 2badddc0-30a4-47f3-b6dd-af53c4c1d8b3